[Event "FIDE WY-U16 Olympiad 2022"]
[Site "Nakhchivan"]
[Date "2022.10.06"]
[Round "5.10"]
[White "Begmuratov, Khumoyun"]
[Black "Talibov, Shiroghlan"]
[Result "1-0"]
[ECO "C18"]
[WhiteElo "2367"]
[BlackElo "2342"]
[Annotator "TA"]
[PlyCount "75"]
[EventDate "2022.10.02"]
[EventType "team-tourn"]
[EventCountry "AZE"]
[SourceTitle "playchess.com"]
[Source "ChessBase"]
[SourceQuality "1"]
[WhiteTeam "Uzbekistan"]
[BlackTeam "Azerbaijan"]
[WhiteTeamCountry "UZB"]
[BlackTeamCountry "AZE"]
[TimeControl "40/5400+30:1800+30"]

{[%evp 13,75,21,17,-12,10,9,16,14,21,-2,9,0,0,0,7,0,0,-7,0,-22,-14,-21,-14,-14,-10,-18,-16,-16,-16,-16,-16,-16,-10,-17,-17,-24,-24,-25,0,0,0,-25,0,0,0,0,14,20,21,15,190,203,228,218,227,244,376,394,422,425,781,775,729,713]} 1. e4 {[%emt 0:00:05]} e6 {[%emt 0:00:04]} 2. d4 {[%emt 0:00:13]} d5 {[%emt 0:00:03]} 3. Nc3 {[%emt 0:00:10]} Bb4 {[%emt 0:00:06]} 4. e5 {[%emt 0:00:12]} c5 {[%emt 0:00:04]} 5. a3 {[%emt 0:00:05]} Bxc3+ {[%emt 0:00:04]} 6. bxc3 {[%emt 0:00:09]} Qa5 {[%emt 0:00:03]} 7. Bd2 {[%emt 0:07:26]} Qa4 {[%emt 0:00:07]} 8. Be3 {[%emt 0:07:54] C18: French: 3 Nc3 Bb4: Main line: 7 h4 and 7 Qg4.} c4 {[%emt 0:11:49]} 9. Ne2 {[%emt 0:05:57]} Nc6 {[%emt 0:05:09] [#]} 10. Ng3 $146 {[%emt 0:00:40] The position is equal.} ({Predecessor:} 10. g3 Bd7 11. Bg2 O-O-O 12. O-O f6 13. exf6 Nxf6 14. Qb1 h6 15. Qb2 g5 16. f4 {½-½ (26) Cundy,M (1931)-Anderton,D (2132) England 2016}) 10... Bd7 {[%emt 0:01:11]} 11. h4 {[%emt 0:04:54]} O-O-O {[%emt 0:20:28]} 12. h5 {[%emt 0:02:57]} h6 {[%emt 0:04:01]} 13. Be2 {[%emt 0:04:17]} Nge7 {[%emt 0:04:45][%cal Bg8e7,Be7c8,Bc8b6,Bb6a4][%mdl 32]} 14. Qd2 {[%emt 0:02:21]} Kb8 {[%emt 0:07:18]} 15. Bf3 {[%emt 0:05:16]} Rdf8 {[%emt 0:10:34]} 16. Rh4 {[%emt 0:02:07]} Rhg8 {[%emt 0:02:51]} 17. Kf1 {[%emt 0:02:48]} Nc8 {[%emt 0:03:03]} 18. Kg1 {[%emt 0:02:56]} N6e7 {[%emt 0:01:05]} 19. Rg4 {[%emt 0:14:10]} Nb6 {[%emt 0:02:36]} 20. Qc1 {[%emt 0:05:59]} Qa5 {[%emt 0:07:54]} 21. Bd2 {[%emt 0:02:29]} Na4 {[%emt 0:02:10]} 22. Rb1 {[%emt 0:00:42]} Rc8 {[%emt 0:03:42][%cal Bf8c8,Bc8c6,Bc6b6][%mdl 32]} 23. Nf1 {[%emt 0:05:23]} Qd8 {[%emt 0:05:13]} 24. Qe1 {[%emt 0:02:35]} Rc6 {[%emt 0:02:29]} 25. Rf4 {[%emt 0:01:46]} Rf8 {[%emt 0:00:38]} 26. Bg4 {[%emt 0:01:26]} Rb6 {[%emt 0:02:24]} 27. Ra1 {[%emt 0:03:17]} Ra6 {[%emt 0:02:30]} 28. Bh3 {[%emt 0:01:13]} Bc8 {[%emt 0:00:55]} 29. Qd1 {[%emt 0:00:56]} g5 {[%emt 0:00:44]} 30. hxg6 {[%emt 0:01:39]} fxg6 {[%emt 0:00:34]} 31. Rf6 {[%emt 0:00:52]} Nf5 $2 {[%emt 0:00:50] [#] Black cannot hold the game after this.} (31... Rh8 $11 {and Black has nothing to worry.}) 32. Rxg6 $18 {[%emt 0:00:31]} Qe8 {[%emt 0:00:18]} 33. Bxf5 {[%emt 0:01:59]} Rxf5 {[%emt 0:00:08]} 34. Rf6 {[%emt 0:02:27]} ({Much less strong is} 34. Rxh6 Qf8 35. Qe1 Rf7) 34... Rxf6 {[%emt 0:00:49]} (34... Qe7 {was worth a try.} 35. Rxf5 (35. Bxh6 Nxc3 36. Qe1 Rxf6 $14) (35. Rxh6 Qf8 $18) 35... exf5) 35. exf6 {[%emt 0:00:02][%cal Be5f6,Bf6f7][%mdl 32]} e5 {[%emt 0:00:35]} 36. Qf3 {[%emt 0:01:12] White is clearly winning.} ({Not} 36. dxe5 Qxe5 37. Ne3 (37. f7 Rf6 $16) 37... Rxf6 $16) 36... e4 {[%emt 0:00:37]} (36... Be6 $142 37. dxe5 Qg6) 37. f7 {[%emt 0:01:27] [#] Intending Qg3+ and mate.} Qf8 {[%emt 0:00:07]} 38. Qg3+ {[%emt 0:00:02] Weighted Error Value: White=0.05 (flawless) /Black=0.23 (precise)} 1-0

[Event "FIDE WY-U16 Olympiad 2022"]
[Site "Nakhchivan"]
[Date "2022.10.06"]
[Round "5.10"]
[White "Khamdamova, Afruza"]
[Black "Jannatul, Ferdousi"]
[Result "1-0"]
[ECO "C07"]
[WhiteElo "2118"]
[BlackElo "1624"]
[Annotator "TA"]
[PlyCount "55"]
[EventDate "2022.10.02"]
[EventType "team-tourn"]
[EventCountry "AZE"]
[SourceTitle "playchess.com"]
[Source "ChessBase"]
[SourceQuality "1"]
[WhiteTeam "Uzbekistan"]
[BlackTeam "Bangladesh"]
[WhiteTeamCountry "UZB"]
[BlackTeamCountry "BAN"]
[TimeControl "40/5400+30:1800+30"]

{[%evp 21,55,17,16,12,15,14,22,13,29,20,30,29,37,17,20,8,27,29,30,35,45,10,56,51,56,56,56,56,56,56,59,12,12,12,447,433]} 1. e4 {[%emt 0:00:04]} e6 {[%emt 0:00:20]} 2. d4 {[%emt 0:00:06]} d5 {[%emt 0:00:07]} 3. Nd2 {[%emt 0:00:05]} c5 {[%emt 0:00:28]} 4. Ngf3 {[%emt 0:00:14]} Nf6 {[%emt 0:04:38]} 5. exd5 {[%emt 0:02:39]} exd5 {[%emt 0:01:21]} 6. Bb5+ {[%emt 0:01:18]} Bd7 {[%emt 0:02:57]} 7. Bxd7+ {[%emt 0:00:24]} Nbxd7 {[%emt 0:00:49][%cal Bb8d7,Bd7c5,Bc5e4][%mdl 32]} 8. O-O {[%emt 0:00:08]} Be7 {[%emt 0:00:33]} 9. dxc5 {[%emt 0:00:45]} Nxc5 {[%emt 0:00:48]} 10. Nd4 {[%emt 0:02:43]} O-O {[%emt 0:05:14]} 11. N2f3 {[%emt 0:00:51]} Nce4 {[%emt 0:02:51]} 12. Bf4 {[%emt 0:05:26] C08: French Tarrasch: 3...c5 4 exd5 exd5 sidelines.} (12. Nf5 {is more complex.} Bc5 13. Be3 Qd7 14. Bxc5 Nxc5 15. N3d4) 12... Bd6 {[%emt 0:05:48]} 13. Bxd6 {[%emt 0:05:14]} Qxd6 {[%emt 0:01:18]} 14. c3 {[%emt 0:00:33] The position is equal.} Qb6 {[%emt 0:03:16] [#]} 15. Qc2 $146 {[%emt 0:01:01]} ({Predecessor:} 15. Qb3 Qd6 16. Rad1 a6 17. h3 Nc5 18. Qc2 Nce4 19. Nf5 Qd7 20. Ne3 Rfd8 21. Nxd5 Nxd5 22. Qxe4 {½-½ (64) Kiss,P (1857)-Wanger,T (1801) Budapest 2010}) 15... Rac8 {[%emt 0:02:17]} 16. Rad1 {[%emt 0:00:22]} Rfe8 {[%emt 0:03:02]} 17. h3 {[%emt 0:14:27]} h6 {[%emt 0:11:24]} 18. Nf5 {[%emt 0:04:52]} Rcd8 {[%emt 0:15:57]} 19. Rfe1 {[%emt 0:07:25][%cal Bf1e1,Be1e3,Be3f3][%mdl 32]} a6 {[%emt 0:02:58]} 20. N3d4 {[%emt 0:05:38][%cal Bf3d4,Bd4f5,Bf5e7][%mdl 32]} Qc7 {[%emt 0:07:24]} 21. Re3 {[%emt 0:04:30]} Re5 {[%emt 0:09:09]} (21... g6 $11) 22. Rde1 $14 {[%emt 0:06:07] [#] aiming for f3.} Rde8 {[%emt 0:00:55]} 23. f4 {[%emt 0:09:09]} Rxf5 {[%emt 0:04:40]} 24. Nxf5 {[%emt 0:00:04]} Qxf4 25. Rf3 {[%emt 0:00:16]} Qc7 {[%emt 0:03:26]} 26. Qc1 {[%emt 0:00:43]} (26. Qa4 $14) 26... Qb6+ $11 {[%emt 0:01:53]} 27. Kh2 {[%emt 0:01:44]} Rc8 $2 {[%emt 0:02:30][%mdl 8192] [#]} (27... Re6 $11) 28. Ne7+ {[%emt 0:00:14] Weighted Error Value: White=0.11 (very precise) /Black=0.43} 1-0

[Event "FIDE WY-U16 Olympiad 2022"]
[Site "Nakhchivan"]
[Date "2022.10.06"]
[Round "5.11"]
[White "Manon, Reja Neer"]
[Black "Abdukhakimov, Akbarali"]
[Result "1/2-1/2"]
[ECO "B92"]
[WhiteElo "2107"]
[BlackElo "1777"]
[Annotator "TA"]
[PlyCount "77"]
[EventDate "2022.10.02"]
[EventType "team-tourn"]
[EventCountry "AZE"]
[SourceTitle "playchess.com"]
[Source "ChessBase"]
[SourceQuality "1"]
[WhiteTeam "Bangladesh"]
[BlackTeam "Uzbekistan"]
[WhiteTeamCountry "BAN"]
[BlackTeamCountry "UZB"]
[TimeControl "40/5400+30:1800+30"]

{[%evp 21,77,-20,-22,-57,-34,-38,-48,-36,-45,-40,-43,-43,-39,-53,-29,-29,-35,-29,-32,-21,-4,-4,-13,-17,-20,-27,-25,-23,-23,-40,-40,-40,-40,-40,-40,-40,-40,-67,-59,-67,-67,-67,-52,-62,-52,-52,-52,-95,-52,-52,-52,-60,-52,-52,-52,-52,-52,-52]} 1. e4 {[%emt 0:00:03]} c5 {[%emt 0:01:47]} 2. Nf3 {[%emt 0:00:02]} d6 {[%emt 0:00:06]} 3. d4 {[%emt 0:00:05]} cxd4 {[%emt 0:00:09]} 4. Nxd4 {[%emt 0:00:05]} Nf6 {[%emt 0:00:06]} 5. Nc3 {[%emt 0:00:07]} a6 {[%emt 0:00:02]} 6. Be2 {[%emt 0:00:23]} e5 {[%emt 0:00:04]} 7. Nb3 {[%emt 0:00:04]} Be7 {[%emt 0:00:04]} 8. Be3 {[%emt 0:00:05]} Be6 {[%emt 0:00:06]} 9. O-O {[%emt 0:00:05]} O-O {[%emt 0:00:03]} 10. Qd2 {[%emt 0:00:27]} b5 {[%emt 0:04:58][%cal Bb7b5,Bb5b4][%mdl 32]} 11. f3 {[%emt 0:04:49]} Nbd7 {[%emt 0:01:59]} 12. a4 {[%emt 0:03:42] B92: Sicilian Najdorf: 6 Be2.} b4 {[%emt 0:10:03]} 13. Nd5 {[%emt 0:02:56]} Bxd5 {[%emt 0:00:23]} 14. exd5 {[%emt 0:00:03]} Nb6 $1 {[%emt 0:00:09]} 15. Bxb6 {[%emt 0:04:07]} Qxb6+ {[%emt 0:00:09]} 16. Kh1 {[%emt 0:00:02]} Rfc8 {[%emt 0:02:33]} 17. Rfd1 {[%emt 0:25:49]} Nd7 {[%emt 0:06:26]} 18. a5 {[%emt 0:17:20]} Qb7 {[%emt 0:01:04]} 19. Ra4 {[%emt 0:03:34]} Rab8 {[%emt 0:09:03]} 20. Bd3 {[%emt 0:03:47] [#]} Nc5 $146 {[%emt 0:21:59]} ({Predecessor:} 20... g6 21. Qe2 Ra8 22. Qd2 Rab8 23. Qe2 Ra8 24. Qd2 {½-½ (24) Jaffray,J (1977)-Naroditsky,A (2052) San Francisco 2009}) 21. Nxc5 {[%emt 0:00:19]} Rxc5 {[%emt 0:00:22]} 22. b3 {[%emt 0:00:53]} Bd8 {[%emt 0:02:16]} 23. Qe2 {[%emt 0:02:37]} Rxa5 {[%emt 0:05:56]} 24. Rxa5 {[%emt 0:02:59]} Bxa5 {[%emt 0:00:16]} 25. Qe4 {[%emt 0:00:12]} g6 {[%emt 0:02:45]} 26. Ra1 {[%emt 0:00:02]} Bd8 {[%emt 0:00:59]} 27. Rxa6 {[%emt 0:05:20]} Ra8 $1 {[%emt 0:00:18]} 28. Rxa8 {[%emt 0:08:14]} Qxa8 $15 {[%emt 0:00:18][%mdl 4096] Endgame KQB-KQB} 29. Qe1 {[%emt 0:00:04] Prevents Qa1.} Qa7 {[%emt 0:03:54]} 30. g4 {[%emt 0:06:20]} Qd4 {[%emt 0:03:06]} 31. Kg2 {[%emt 0:03:07]} Bg5 {[%emt 0:07:00]} ({Much weaker is} 31... Qxd5 32. Qxb4 Bg5 33. Qe4 $11) 32. Be4 {[%emt 0:01:04]} Kg7 {[%emt 0:01:28]} 33. Qe2 {[%emt 0:01:25]} Qc3 {[%emt 0:04:22]} 34. Qd3 {[%emt 0:02:50]} Qa1 {[%emt 0:05:36]} (34... Qe1 {seems wilder.} 35. Qf1 Qh4 36. Qf2 Qh6) 35. Qf1 {[%emt 0:01:16] Black is slightly better.} Qa7 {[%emt 0:01:07]} 36. Qd1 {[%emt 0:01:56]} Be3 {[%emt 0:00:52]} 37. Qe2 {[%emt 0:01:03]} Bc5 {[%emt 0:00:54]} 38. Qe1 {[%emt 0:00:40]} Qa2 {[%emt 0:01:11]} 39. Qc1 {[%emt 0:00:42] Weighted Error Value: White=0.07 (flawless) /Black=0.06 (flawless)} 1/2-1/2

[Event "FIDE WY-U16 Olympiad 2022"]
[Site "Nakhchivan"]
[Date "2022.10.06"]
[Round "5.12"]
[White "Omonova, Umida"]
[Black "Abdinova, Narmin"]
[Result "0-1"]
[ECO "C50"]
[WhiteElo "2078"]
[BlackElo "1810"]
[Annotator "TA"]
[PlyCount "74"]
[EventDate "2022.10.02"]
[EventType "team-tourn"]
[EventCountry "AZE"]
[SourceTitle "playchess.com"]
[Source "ChessBase"]
[SourceQuality "1"]
[WhiteTeam "Uzbekistan"]
[BlackTeam "Azerbaijan"]
[WhiteTeamCountry "UZB"]
[BlackTeamCountry "AZE"]
[TimeControl "40/5400+30:1800+30"]

{[%evp 13,74,16,12,14,16,16,16,-15,12,-18,0,0,6,-12,-8,-31,-22,-47,-35,-89,-77,-100,-103,-101,-105,-105,-93,-126,-131,-253,-250,-238,-214,-304,-299,-390,-391,-446,-318,-326,-311,-313,-295,-298,-298,-282,-263,-262,-262,-243,-216,-259,-252,-557,-570,-552,-581,-570,-564,-532,-505,-29998,-29999]} 1. e4 {[%emt 0:00:30]} e5 {[%emt 0:00:04]} 2. Nf3 {[%emt 0:00:08]} Nc6 {[%emt 0:00:06]} 3. Bc4 {[%emt 0:00:07]} Bc5 {[%emt 0:00:07]} 4. d3 {[%emt 0:00:37]} Nf6 {[%emt 0:00:21]} 5. O-O {[%emt 0:00:31]} d6 {[%emt 0:00:59]} 6. c3 {[%emt 0:00:06]} O-O {[%emt 0:00:39]} 7. a4 {[%emt 0:00:19] 7.Nbd2 is setting a new trend.} a5 {[%emt 0:01:14]} 8. Re1 {[%emt 0:00:33] C54: Giuoco Piano: 4 c3 Nf6, main lines with 5 d4 and 5 d3.} h6 {[%emt 0:01:07]} 9. h3 {[%emt 0:01:15]} Be6 {[%emt 0:00:51]} 10. Bb5 {[%emt 0:02:32] The position is equal.} Ne7 {[%emt 0:07:57] [#]} 11. Nbd2 $146 {[%emt 0:12:41]} (11. d4 exd4 12. cxd4) ({Predecessor:} 11. d4 Bb6 12. Nbd2 c6 13. Bf1 Ng6 14. Nc4 Bc7 15. dxe5 dxe5 16. Qc2 Nh5 17. b4 {½-½ (89) Visakh,N (2516)-Sunilduth Lyna,N (2618) chess24.com INT 2021}) 11... c6 {[%emt 0:06:29][%cal Bc7c6,Bc6d5,Bd5e4][%mdl 32]} 12. Bc4 {[%emt 0:00:08]} Qb6 {[%emt 0:03:03]} 13. Re2 {[%emt 0:03:00][%cal Od3d4]} d5 {[%emt 0:00:45]} 14. Ba2 {[%emt 0:06:36]} Ng6 {[%emt 0:02:39]} 15. exd5 {[%emt 0:08:43]} cxd5 {[%emt 0:03:49][%cal Oe5e4]} 16. Nf1 {[%emt 0:04:34]} ({White should play} 16. d4 $15 exd4 17. cxd4) 16... e4 {[%emt 0:09:21] White is now going downhill.} 17. dxe4 {[%emt 0:04:00]} dxe4 {[%emt 0:06:40]} 18. Nd4 {[%emt 0:00:23]} Bxa2 {[%emt 0:04:48] Black is more active.} 19. Rxa2 {[%emt 0:00:06]} Rad8 {[%emt 0:01:26]} 20. Be3 {[%emt 0:10:54]} Nd5 {[%emt 0:09:12]} 21. Qc2 {[%emt 0:11:27]} (21. Rd2 $17 {keeps fighting.}) 21... f5 $19 {[%emt 0:16:37]} 22. Ra1 {[%emt 0:07:15]} Ngf4 {[%emt 0:03:05]} 23. Ree1 {[%emt 0:08:22]} (23. Rd2 {might work better.}) 23... Qg6 {[%emt 0:04:05][%csl Gf4][%cal Rg6g2] [#]} 24. Ng3 {[%emt 0:03:39]} Nd3 {[%emt 0:06:19]} 25. Bd2 {[%emt 0:01:35]} Nxe1 {[%emt 0:00:43]} 26. Rxe1 {[%emt 0:00:01]} Bxd4 {[%emt 0:00:19]} 27. cxd4 {[%emt 0:00:06]} Kh7 {[%emt 0:00:15][%cal Oe4e3]} 28. Bxa5 {[%emt 0:01:06]} b6 {[%emt 0:00:10]} 29. Bc3 {[%emt 0:01:24]} e3 {[%emt 0:01:46]} 30. Nf1 {[%emt 0:00:29]} exf2+ {[%emt 0:03:57]} 31. Qxf2 {[%emt 0:00:02]} Rde8 {[%emt 0:00:37]} 32. Rc1 {[%emt 0:02:11]} f4 {[%emt 0:00:18] Hoping for ...f3.} 33. Nd2 {[%emt 0:01:12]} (33. Qf3 Qe4 34. Kf2) 33... f3 {[%emt 0:00:25]} 34. Nxf3 {[%emt 0:00:36]} Nf4 {[%emt 0:00:04] ( -> ...Nxh3+)} 35. Qc2 {[%emt 0:02:59]} Ne2+ {[%emt 0:00:40]} 36. Kf2 {[%emt 0:00:57]} Re4 {[%emt 0:01:43]} 37. Be1 {[%emt 0:02:50] [#]} (37. Qxe4 $19 Qxe4 38. Re1) 37... Rxf3+ {[%emt 0:00:19][%mdl 64] Remove Defender.  Weighted Error Value: White=0.50/Black=0.13 (very precise)} 0-1

[Event "FIDE WY-U16 Olympiad 2022"]
[Site "Nakhchivan"]
[Date "2022.10.06"]
[Round "5.12"]
[White "Botiraliev, Abdumajid"]
[Black "Sakline Mostafa, Sajid"]
[Result "1-0"]
[ECO "B23"]
[WhiteElo "1552"]
[BlackElo "2001"]
[Annotator "TA"]
[PlyCount "83"]
[EventDate "2022.10.02"]
[EventType "team-tourn"]
[EventCountry "AZE"]
[SourceTitle "playchess.com"]
[Source "ChessBase"]
[SourceQuality "1"]
[WhiteTeam "Uzbekistan"]
[BlackTeam "Bangladesh"]
[WhiteTeamCountry "UZB"]
[BlackTeamCountry "BAN"]
[TimeControl "40/5400+30:1800+30"]

{[%evp 12,82,-34,-33,0,7,66,62,69,69,60,64,59,65,168,196,202,164,227,220,397,248,241,237,238,234,258,211,210,207,256,256,346,333,358,357,421,425,484,354,355,358,545,526,555,551,534,555,540,533,526,520,672,627,660,637,900,885,2998,2398,2302,2025,29998,29999,29999,29996,29997,29997,29997,29998,29998,29999,29999]} 1. e4 {[%emt 0:00:48]} c5 {[%emt 0:00:46]} 2. Nc3 {[%emt 0:00:29]} Nc6 {[%emt 0:00:26]} 3. Nge2 {[%emt 0:00:53]} Nf6 {[%emt 0:00:46]} 4. g3 {[%emt 0:05:13]} g6 {[%emt 0:05:40]} 5. Bg2 {[%emt 0:04:14]} Bg7 {[%emt 0:01:16]} 6. d4 {[%emt 0:09:45]} (6. d3) 6... cxd4 {[%emt 0:02:33]} 7. Nxd4 {[%emt 0:00:02]} Nxd4 {[%emt 0:01:30] B34: Sicilian: Accelerated Dragon with 5 Nc3: sidelines.} (7... Nxe4 8. Nxc6 Nxc3 9. Nxd8 Nxd1) (7... Nxe4 $5 8. Nxc6 Nxc3 9. Nxd8 Nxd1 $11) 8. Qxd4 {[%emt 0:00:16] White wants to play e5.} O-O {[%emt 0:00:42] [#]} (8... d6) ({Black should try} 8... d6 $11) 9. e5 $146 {[%emt 0:08:39]} ({Predecessor:} 9. O-O d6 10. Qd3 Rb8 11. Be3 b6 12. b3 Bb7 13. Rac1 Qd7 14. Rfe1 Ne8 15. a4 Nc7 16. h4 a6 17. Nd5 Rfc8 18. Bh3 e6 19. Bg5 Bxd5 20. exd5 h6 21. dxe6 Nxe6 22. Bxe6 fxe6 23. Bf4 g5 24. hxg5 hxg5 25. Qxd6 {1-0 (25) Gorbatov,A (2417)-Enzendorfer,A (2184) St Veit 1999}) 9... Ne8 {[%emt 0:03:52] White is slightly better.} 10. Bf4 {[%emt 0:06:06] White has more active pieces.} d6 {[%emt 0:12:31]} 11. O-O-O {[%emt 0:09:07]} Qa5 {[%emt 0:18:47][%cal Rd6e5]} 12. Rhe1 $36 {[%emt 0:07:45][%mdl 2048] White is pushing.} Bf5 {[%emt 0:09:59]} (12... Nc7 $14) 13. Qd5 $18 {[%emt 0:04:49]} Qd8 {[%emt 0:07:37]} 14. Qxb7 {[%emt 0:08:46]} Rb8 {[%emt 0:00:46]} (14... Rc8 $142 15. Qxa7 Rc7) 15. Qxa7 {[%emt 0:00:49]} Be6 {[%emt 0:07:24] [#]} (15... Rc8 16. Rd2 Rc7) 16. Nd5 {[%emt 0:03:47]} Bxd5 {[%emt 0:04:00]} 17. Bxd5 {[%emt 0:01:13]} e6 {[%emt 0:00:58]} 18. Bb3 {[%emt 0:00:54][%cal Re5d6]} d5 {[%emt 0:01:45]} 19. Kb1 {[%emt 0:03:02]} Nc7 {[%emt 0:01:23]} 20. h4 {[%emt 0:03:53]} Nb5 {[%emt 0:01:23]} 21. Qe3 {[%emt 0:01:33]} d4 {[%emt 0:01:40]} 22. Qd2 {[%emt 0:02:42]} Qb6 {[%emt 0:02:39]} 23. h5 {[%emt 0:03:11]} ({Resist} 23. a4 Na7 24. Qxd4 Qb7 $18) 23... Rfd8 {[%emt 0:00:41]} 24. hxg6 {[%emt 0:00:44]} hxg6 {[%emt 0:00:04]} 25. Rh1 {[%emt 0:01:44]} d3 {[%emt 0:00:27]} 26. c3 {[%emt 0:01:08]} ({Weaker is} 26. cxd3 Nd4 $16) 26... Nc7 {[%emt 0:01:09]} (26... Qa5 {is a better defense.} 27. Bg5 Bxe5) 27. Bg5 {[%emt 0:00:49]} Bxe5 {[%emt 0:04:36]} 28. Bxd8 {[%emt 0:00:34]} Rxd8 {[%emt 0:00:03]} 29. Qg5 {[%emt 0:05:48][%csl LRd8,LRe5] Inhibits Bf6.} Qd6 {[%emt 0:01:11]} 30. f4 {[%emt 0:01:24][%cal Bf2f4,Bf4f5][%mdl 32]} Bg7 {[%emt 0:00:08]} 31. g4 {[%emt 0:01:05]} Rb8 {[%emt 0:01:50]} 32. f5 {[%emt 0:01:07]} Qe5 {[%emt 0:01:32]} 33. Rxd3 {[%emt 0:02:36]} Qe4 {[%emt 0:04:13]} 34. Rhd1 {[%emt 0:00:24]} Rb5 {[%emt 0:01:16]} 35. Qd8+ {[%emt 0:00:16]} Bf8 {[%emt 0:00:07]} 36. Qxc7 {[%emt 0:00:07] [#] Strongly threatening fxe6.} exf5 {[%emt 0:00:32]} 37. Qxf7+ {[%emt 0:00:06] White mates.} Kh8 {[%emt 0:00:01]} 38. Qxf8+ {[%emt 0:00:12]} Kh7 {[%emt 0:00:04]} 39. Bg8+ {[%emt 0:00:25]} Kh8 {[%emt 0:00:03]} 40. Bf7+ {[%emt 0:00:08]} Kh7 {[%emt 0:00:03]} 41. Qg8+ {[%emt 0:30:07]} Kh6 {[%emt 0:31:00]} 42. Qxg6# {[%emt 0:00:02] Black got outplayed after the opening.  Weighted Error Value: White=0.16 (very precise) /Black=0.49} 1-0

[Event "FIDE WY-U16 Olympiad 2022"]
[Site "Nakhchivan"]
[Date "2022.10.06"]
[Round "5.13"]
[White "Caputcuoglu, Zeki Berke"]
[Black "Hidalgo Diaz, Daniel"]
[Result "1/2-1/2"]
[ECO "C07"]
[WhiteElo "2370"]
[BlackElo "2315"]
[Annotator "TA"]
[PlyCount "62"]
[EventDate "2022.10.02"]
[EventType "team-tourn"]
[EventCountry "AZE"]
[SourceTitle "playchess.com"]
[Source "ChessBase"]
[SourceQuality "1"]
[WhiteTeam "Turkey"]
[BlackTeam "Cuba"]
[WhiteTeamCountry "TUR"]
[BlackTeamCountry "CUB"]
[TimeControl "40/5400+30:1800+30"]

{[%evp 14,62,20,18,18,14,17,15,22,28,31,12,35,22,43,51,58,29,39,33,35,20,28,30,48,-1,-4,-8,0,-10,-12,-12,0,-14,-14,-17,73,74,73,71,70,66,74,17,75,0,15,0,73,0,19]} 1. e4 {[%emt 0:00:07]} e6 {[%emt 0:00:10]} 2. d4 {[%emt 0:00:07]} d5 {[%emt 0:00:05]} 3. Nd2 {[%emt 0:00:09]} c5 {[%emt 0:00:07]} 4. Ngf3 {[%emt 0:00:07]} cxd4 {[%emt 0:00:07]} 5. Nxd4 {[%emt 0:00:05]} Nc6 {[%emt 0:00:12]} 6. Bb5 {[%emt 0:00:12]} Bd7 {[%emt 0:00:13]} 7. Nxc6 {[%emt 0:00:08]} bxc6 {[%emt 0:00:08]} 8. Bd3 {[%emt 0:00:05]} Bd6 {[%emt 0:00:33] C07: French Tarrasch: 3...c5, 4 Ngf3 and 4 exd5 Qxd5.} 9. Qe2 {[%emt 0:00:13]} Qc7 {[%emt 0:00:11] 9...e5 is the modern continuation.} 10. Nf3 {[%emt 0:00:06]} f6 {[%emt 0:00:13]} 11. O-O {[%emt 0:00:14]} Ne7 {[%emt 0:00:21]} 12. c4 {[%emt 0:00:10]} O-O {[%emt 0:01:04]} 13. Be3 {[%emt 0:00:30] [#]} dxe4 $146 {[%emt 0:01:22]} ({Predecessor:} 13... Kh8 14. Rac1 dxe4 15. Bxe4 f5 16. Bc2 Ng6 17. Rfd1 Rad8 18. Bg5 Rde8 19. Qd2 Nf4 20. Qxd6 {1-0 (32) Kosakowski,J (2452)-Gaisinsky,A (2105) Chess.com INT 2022}) 14. Bxe4 {[%emt 0:00:05]} f5 {[%emt 0:00:20]} 15. Bc2 {[%emt 0:00:06]} c5 $1 {[%emt 0:00:18]} 16. b4 {[%emt 0:01:13]} cxb4 {[%emt 0:01:44]} 17. Rfd1 {[%emt 0:05:01] [#] Black must now prevent Qd2.} Rad8 {[%emt 0:05:46]} 18. Bb3 {[%emt 0:30:25][%cal Oc4c5] Strongly threatening c5!} Be5 {[%emt 0:19:38][%cal Bd6e5,Be5a1,Ba1f6][%mdl 32]} 19. Bg5 {[%emt 0:11:51]} (19. Bd4 $14 Bxd4 20. Rxd4) 19... Bxa1 $11 {[%emt 0:01:39]} 20. Bxe7 {[%emt 0:00:07]} Bf6 $1 {[%emt 0:00:07]} 21. Bxd8 {[%emt 0:08:46]} Rxd8 {[%emt 0:00:27]} 22. c5 {[%emt 0:01:30][%cal Od1d7] [#] aiming for Rxd7!} Kf8 {[%emt 0:01:05]} 23. Qc4 {[%emt 0:04:11]} a5 {[%emt 0:02:09] White should prevent ...a4.} 24. Nd4 $1 {[%emt 0:02:09][%cal Oc4e6] Qxe6! is the strong threat.} Bc8 {[%emt 0:03:00]} (24... Qe5 $11 {keeps the balance.}) 25. Nxe6+ $16 {[%emt 0:03:16]} Bxe6 {[%emt 0:00:06]} 26. Rxd8+ {[%emt 0:00:04]} Qxd8 {[%emt 0:00:00]} 27. Qxe6 {[%emt 0:00:23][%csl Gb3][%cal Re6f7] KQB-KQB} Qe8 {[%emt 0:00:02] Inhibits Qf7+.} 28. Qg8+ {[%emt 0:10:58]} Ke7 {[%emt 0:00:01]} 29. Qe6+ {[%emt 0:01:38]} (29. Qd5 $16 {[%csl Gc5][%cal Rd5d6]} Qd7 30. Qc4) 29... Kf8 $11 {[%emt 0:00:01]} 30. Qg8+ {[%emt 0:00:54]} ({White should try} 30. c6 $11 Qxe6 31. Bxe6) 30... Ke7 $16 {[%emt 0:00:05]} 31. Qe6+ {[%emt 0:00:19]} (31. Qd5 $16 {[%csl Gc5][%cal Rd5d6]} Qd7 32. Qc4) 31... Kf8 {[%emt 0:00:02] Weighted Error Value: White=0.14 (very precise) /Black=0.12 (very precise)} 1/2-1/2